[Event "Early-Titled-Tuesday-Blitz-April-23-2024"]
[Site "Chess.com"]
[Date "2024.04.23"]
[Round "2"]
[White "biostatistician"]
[Black "Artemiki"]
[Result "1-0"]
[WhiteElo "2758"]
[BlackElo "2452"]
[TimeControl "180+1"]
[EndTime "8:19:20 PDT"]
[Termination "biostatistician won on time"]

1. d4 {[%clk 0:03:00]} 1... Nf6 {[%clk 0:03:00.1]} 2. Nf3 {[%clk 0:03:00.2]}
2... d5 {[%clk 0:02:58.6]} 3. c4 {[%clk 0:03:00.4]} 3... e6 {[%clk 0:02:58.8]}
4. Bg5 {[%clk 0:02:59.8]} 4... Be7 {[%clk 0:02:51.7]} 5. e3 {[%clk 0:02:59.7]}
5... h6 {[%clk 0:02:51.7]} 6. Bh4 {[%clk 0:02:59.8]} 6... O-O {[%clk 0:02:51.2]}
7. Nc3 {[%clk 0:02:59.8]} 7... b6 {[%clk 0:02:51.8]} 8. Bd3 {[%clk 0:02:59.3]}
8... dxc4 {[%clk 0:02:51.3]} 9. Bxc4 {[%clk 0:03:00.2]} 9... Bb7 {[%clk
0:02:51.7]} 10. O-O {[%clk 0:03:00.7]} 10... Nbd7 {[%clk 0:02:52.3]} 11. Qe2
{[%clk 0:03:01]} 11... c5 {[%clk 0:02:51.9]} 12. Rad1 {[%clk 0:03:00.2]} 12...
cxd4 {[%clk 0:02:28.1]} 13. Nxd4 {[%clk 0:03:01.1]} 13... Qc7 {[%clk 0:02:27.2]}
14. Bg3 {[%clk 0:02:19.2]} 14... Qc5 {[%clk 0:02:13.9]} 15. Nxe6 {[%clk
0:01:57.3]} 15... fxe6 {[%clk 0:01:18.6]} 16. Bxe6+ {[%clk 0:01:58.2]} 16... Kh8
{[%clk 0:01:18.7]} 17. Bxd7 {[%clk 0:01:58.3]} 17... Nxd7 {[%clk 0:01:19.2]} 18.
Rxd7 {[%clk 0:01:57.7]} 18... Qc6 {[%clk 0:01:19.5]} 19. Rd5 {[%clk 0:01:54.9]}
19... Bf6 {[%clk 0:01:17.6]} 20. e4 {[%clk 0:01:50.8]} 20... Bxc3 {[%clk
0:01:13.7]} 21. bxc3 {[%clk 0:01:45.2]} 21... Qxc3 {[%clk 0:01:13.4]} 22. Rd7
{[%clk 0:01:36.4]} 22... Qc6 {[%clk 0:01:07.3]} 23. Qg4 {[%clk 0:01:22.8]} 23...
Rg8 {[%clk 0:00:22.8]} 24. Be5 {[%clk 0:01:05.4]} 24... Bc8 {[%clk 0:00:23.1]}
25. Rxg7 {[%clk 0:00:49.9]} 25... Bxg4 {[%clk 0:00:15.6]} 26. Rc7+ {[%clk
0:00:48.3]} 26... Rg7 {[%clk 0:00:10.5]} 27. Rxc6 {[%clk 0:00:43.5]} 27... Re8
{[%clk 0:00:02.8]} 28. Rxh6+ {[%clk 0:00:39.4]} 28... Kg8 {[%clk 0:00:02.7]} 29.
Bxg7 {[%clk 0:00:39.8]} 29... Kxg7 {[%clk 0:00:03.6]} 30. Rh4 {[%clk 0:00:40]}
30... Be6 {[%clk 0:00:02.3]} 31. a3 {[%clk 0:00:35]} 31... Rc8 {[%clk
0:00:02.3]} 32. Ra1 {[%clk 0:00:35.1]} 32... Rc3 {[%clk 0:00:02.3]} 33. Rf4
{[%clk 0:00:32]} 33... a5 {[%clk 0:00:02.5]} 34. Rf3 {[%clk 0:00:31.8]} 34...
Rc2 {[%clk 0:00:02.9]} 35. Re3 {[%clk 0:00:29.4]} 35... b5 {[%clk 0:00:03.3]}
36. f4 {[%clk 0:00:27.4]} 36... b4 {[%clk 0:00:02.6]} 37. axb4 {[%clk
0:00:28.3]} 37... axb4 {[%clk 0:00:03.5]} 38. f5 {[%clk 0:00:28.8]} 38... Bc4
{[%clk 0:00:02.9]} 39. Rb1 {[%clk 0:00:28.2]} 39... b3 {[%clk 0:00:03]} 40.
Rbxb3 {[%clk 0:00:28.5]} 40... Bxb3 {[%clk 0:00:02.9]} 41. Rxb3 {[%clk
0:00:29.4]} 41... Kf6 {[%clk 0:00:03.5]} 42. Re3 {[%clk 0:00:20.5]} 42... Ke5
{[%clk 0:00:03.6]} 43. Kf1 {[%clk 0:00:17.5]} 43... Kf4 {[%clk 0:00:03.8]} 44.
Re2 {[%clk 0:00:18]} 44... Rc1+ {[%clk 0:00:03.5]} 45. Kf2 {[%clk 0:00:18.2]}
45... Ke5 {[%clk 0:00:03.8]} 46. Kf3 {[%clk 0:00:16.7]} 46... Rf1+ {[%clk
0:00:04.1]} 47. Kg3 {[%clk 0:00:14.8]} 47... Rf4 {[%clk 0:00:05]} 48. h4 {[%clk
0:00:13.5]} 48... Rf1 {[%clk 0:00:04.5]} 49. Kg4 {[%clk 0:00:12.2]} 49... Rh1
{[%clk 0:00:04.8]} 50. Kg5 {[%clk 0:00:12]} 50... Rh2 {[%clk 0:00:05.4]} 51. h5
{[%clk 0:00:11.9]} 51... Rh1 {[%clk 0:00:04.8]} 52. h6 {[%clk 0:00:12.2]} 52...
Ra1 {[%clk 0:00:04.2]} 53. g4 {[%clk 0:00:11.4]} 53... Ra8 {[%clk 0:00:04.5]}
54. Kh5 {[%clk 0:00:11.5]} 54... Kf6 {[%clk 0:00:03]} 55. g5+ {[%clk 0:00:11.3]}
55... Kf7 {[%clk 0:00:03.7]} 56. g6+ {[%clk 0:00:11.3]} 56... Kg8 {[%clk
0:00:04.4]} 57. f6 {[%clk 0:00:10.7]} 57... Ra5+ {[%clk 0:00:03]} 58. e5 {[%clk
0:00:10.8]} 58... Ra1 {[%clk 0:00:02.8]} 59. Kg5 {[%clk 0:00:09.4]} 59... Rg1+
{[%clk 0:00:01.9]} 60. Kf5 {[%clk 0:00:09.8]} 60... Rf1+ {[%clk 0:00:02.8]} 61.
Ke6 {[%clk 0:00:10.1]} 61... Rg1 {[%clk 0:00:03.5]} 62. Ke7 {[%clk 0:00:09.5]}
62... Rxg6 {[%clk 0:00:03.4]} 63. f7+ {[%clk 0:00:09.6]} 63... Kh7 {[%clk
0:00:04.1]} 64. Rf2 {[%clk 0:00:06]} 64... Rg5 {[%clk 0:00:02.2]} 65. e6 {[%clk
0:00:05.7]} 65... Re5 {[%clk 0:00:01.6]} 66. f8=Q {[%clk 0:00:05.6]} 66... Rxe6+
{[%clk 0:00:01.9]} 67. Kxe6 {[%clk 0:00:05.7]} 67... Kg6 {[%clk 0:00:01.6]} 68.
Qf5+ {[%clk 0:00:05.3]} 1-0

[Event "Early-Titled-Tuesday-Blitz-April-23-2024"]
[Site "Chess.com"]
[Date "2024.04.23"]
[Round "2"]
[White "jup1978"]
[Black "mary-sanna"]
[Result "1-0"]
[WhiteElo "2518"]
[BlackElo "2248"]
[TimeControl "180+1"]
[EndTime "8:19:24 PDT"]
[Termination "jup1978 won on time"]

1. d4 {[%clk 0:02:59.7]} 1... d5 {[%clk 0:02:59]} 2. Nf3 {[%clk 0:02:59]} 2...
Nf6 {[%clk 0:02:55.7]} 3. g3 {[%clk 0:02:58.4]} 3... Nbd7 {[%clk 0:02:52.9]} 4.
Bg2 {[%clk 0:02:58.2]} 4... Nb6 {[%clk 0:02:53.2]} 5. O-O {[%clk 0:02:56.5]}
5... Bf5 {[%clk 0:02:52.9]} 6. b3 {[%clk 0:02:53.6]} 6... e6 {[%clk 0:02:51.5]}
7. Bb2 {[%clk 0:02:54]} 7... Be7 {[%clk 0:02:50.6]} 8. Nbd2 {[%clk 0:02:54.5]}
8... O-O {[%clk 0:02:50.1]} 9. Nh4 {[%clk 0:02:54.5]} 9... Bg6 {[%clk
0:02:47.8]} 10. Nxg6 {[%clk 0:02:54.2]} 10... hxg6 {[%clk 0:02:48.7]} 11. e4
{[%clk 0:02:54.2]} 11... dxe4 {[%clk 0:02:46.4]} 12. Nxe4 {[%clk 0:02:55.1]}
12... Nxe4 {[%clk 0:02:43.4]} 13. Bxe4 {[%clk 0:02:56]} 13... Bf6 {[%clk
0:02:43.4]} 14. Bxb7 {[%clk 0:02:53.8]} 14... Rb8 {[%clk 0:02:43.2]} 15. Bg2
{[%clk 0:02:54.3]} 15... Qd6 {[%clk 0:02:39.1]} 16. c4 {[%clk 0:02:52.4]} 16...
Nd7 {[%clk 0:02:36.9]} 17. Qd2 {[%clk 0:02:45.3]} 17... Rfd8 {[%clk 0:02:30]}
18. Rfd1 {[%clk 0:02:44.9]} 18... c5 {[%clk 0:02:11.7]} 19. d5 {[%clk
0:02:38.3]} 19... exd5 {[%clk 0:02:07.4]} 20. Bxd5 {[%clk 0:02:33.4]} 20... Qb6
{[%clk 0:01:59.2]} 21. Qc2 {[%clk 0:02:15.1]} 21... Ne5 {[%clk 0:01:50.1]} 22.
Rab1 {[%clk 0:02:07.9]} 22... a5 {[%clk 0:01:29.2]} 23. f4 {[%clk 0:02:06.3]}
23... Rxd5 {[%clk 0:01:07.1]} 24. Rxd5 {[%clk 0:02:02.6]} 24... Nf3+ {[%clk
0:01:04.7]} 25. Kg2 {[%clk 0:02:01.2]} 25... Nd4 {[%clk 0:01:02.5]} 26. Bxd4
{[%clk 0:01:59]} 26... Bxd4 {[%clk 0:01:03.4]} 27. Re1 {[%clk 0:01:57.2]} 27...
Qf6 {[%clk 0:00:55.6]} 28. Qe4 {[%clk 0:01:50.7]} 28... a4 {[%clk 0:00:54.9]}
29. bxa4 {[%clk 0:01:50.9]} 29... Rb2+ {[%clk 0:00:54.9]} 30. Re2 {[%clk
0:01:51.4]} 30... Rb4 {[%clk 0:00:53.9]} 31. Qe8+ {[%clk 0:01:45.5]} 31... Kh7
{[%clk 0:00:53.5]} 32. Rd8 {[%clk 0:01:45.9]} 32... g5 {[%clk 0:00:48.4]} 33.
fxg5 {[%clk 0:01:31.1]} 33... Qxg5 {[%clk 0:00:48.4]} 34. Qh8+ {[%clk
0:01:22.7]} 34... Kg6 {[%clk 0:00:48.2]} 35. Rd6+ {[%clk 0:01:21.6]} 35... Bf6
{[%clk 0:00:34.8]} 36. Rd5 {[%clk 0:01:15]} 36... Qg4 {[%clk 0:00:32]} 37. Qe8
{[%clk 0:00:56.8]} 37... Rxc4 {[%clk 0:00:29.8]} 38. Rd3 {[%clk 0:00:53.8]}
38... Qf5 {[%clk 0:00:17.3]} 39. Rf3 {[%clk 0:00:50.1]} 39... Qd5 {[%clk
0:00:17.3]} 40. Qe3 {[%clk 0:00:45.9]} 40... Rc3 {[%clk 0:00:16.9]} 41. Qe4+
{[%clk 0:00:45.3]} 41... Qxe4 {[%clk 0:00:16.8]} 42. Rxe4 {[%clk 0:00:46.2]}
42... Rc2+ {[%clk 0:00:17.3]} 43. Rf2 {[%clk 0:00:44.7]} 43... Rc3 {[%clk
0:00:15.5]} 44. Rg4+ {[%clk 0:00:38.6]} 44... Kh7 {[%clk 0:00:15.2]} 45. Re4
{[%clk 0:00:24.6]} 45... Ra3 {[%clk 0:00:13.9]} 46. Rc2 {[%clk 0:00:22.7]} 46...
Bd4 {[%clk 0:00:11.6]} 47. h4 {[%clk 0:00:19.3]} 47... Rxa4 {[%clk 0:00:11.4]}
48. Rf4 {[%clk 0:00:13.3]} 48... Kg6 {[%clk 0:00:11.1]} 49. Kh3 {[%clk
0:00:12.9]} 49... Ra3 {[%clk 0:00:10.6]} 50. Rg4+ {[%clk 0:00:12.2]} 50... Kf6
{[%clk 0:00:10.2]} 51. Rf4+ {[%clk 0:00:11.8]} 51... Kg6 {[%clk 0:00:10.2]} 52.
Kg4 {[%clk 0:00:11.9]} 52... f6 {[%clk 0:00:09.7]} 53. Rf3 {[%clk 0:00:12.3]}
53... Ra4 {[%clk 0:00:08.9]} 54. Kh3 {[%clk 0:00:12.7]} 54... Ra8 {[%clk
0:00:08.6]} 55. Rb3 {[%clk 0:00:11.9]} 55... Re8 {[%clk 0:00:08.5]} 56. a4
{[%clk 0:00:11.1]} 56... Re1 {[%clk 0:00:07.4]} 57. Ra3 {[%clk 0:00:10.9]} 57...
Rh1+ {[%clk 0:00:07.4]} 58. Kg2 {[%clk 0:00:10.5]} 58... Rg1+ {[%clk 0:00:07.9]}
59. Kh2 {[%clk 0:00:11.1]} 59... Rb1 {[%clk 0:00:07.4]} 60. a5 {[%clk
0:00:11.3]} 60... Rb7 {[%clk 0:00:06.4]} 61. a6 {[%clk 0:00:11.4]} 61... Ra7
{[%clk 0:00:06.9]} 62. Ra4 {[%clk 0:00:11.6]} 62... Kf7 {[%clk 0:00:06.9]} 63.
Rc1 {[%clk 0:00:10.6]} 63... Ke6 {[%clk 0:00:07.1]} 64. Rb1 {[%clk 0:00:11.2]}
64... Kd6 {[%clk 0:00:07]} 65. Rb7 {[%clk 0:00:11.6]} 65... c4 {[%clk
0:00:07.4]} 66. Rxa7 {[%clk 0:00:11]} 66... Bxa7 {[%clk 0:00:08.3]} 67. Rxc4
{[%clk 0:00:10.8]} 67... g6 {[%clk 0:00:08.2]} 68. Rb4 {[%clk 0:00:10]} 68...
Kc6 {[%clk 0:00:04.3]} 69. Rb7 {[%clk 0:00:10.3]} 69... Bb6 {[%clk 0:00:04.4]}
70. Rg7 {[%clk 0:00:08.7]} 70... Bd4 {[%clk 0:00:02.9]} 71. Rxg6 {[%clk
0:00:08.2]} 1-0

[Event "Early-Titled-Tuesday-Blitz-April-23-2024"]
[Site "Chess.com"]
[Date "2024.04.23"]
[Round "2"]
[White "ShazilTheGOAT2006"]
[Black "Rodalquilar"]
[Result "0-1"]
[WhiteElo "2404"]
[BlackElo "2733"]
[TimeControl "180+1"]
[EndTime "8:19:25 PDT"]
[Termination "Rodalquilar won by resignation"]

1. e4 {[%clk 0:03:00.9]} 1... d5 {[%clk 0:03:00.2]} 2. exd5 {[%clk 0:02:52.7]}
2... Qxd5 {[%clk 0:03:01.1]} 3. Nc3 {[%clk 0:02:53]} 3... Qa5 {[%clk 0:03:01.2]}
4. d4 {[%clk 0:02:52.4]} 4... Nf6 {[%clk 0:03:01.6]} 5. Bc4 {[%clk 0:02:51.2]}
5... Bg4 {[%clk 0:03:01.4]} 6. Ne2 {[%clk 0:02:50.9]} 6... Nc6 {[%clk
0:03:00.7]} 7. O-O {[%clk 0:02:47.2]} 7... O-O-O {[%clk 0:02:59.2]} 8. h3 {[%clk
0:02:34.9]} 8... Bh5 {[%clk 0:02:31.3]} 9. Be3 {[%clk 0:02:29.6]} 9... e5 {[%clk
0:02:27.9]} 10. d5 {[%clk 0:02:29.8]} 10... Nb4 {[%clk 0:02:19]} 11. Bd2 {[%clk
0:02:12]} 11... Qc5 {[%clk 0:02:15.2]} 12. Bb3 {[%clk 0:02:01.6]} 12... Nbxd5
{[%clk 0:02:12.9]} 13. Nxd5 {[%clk 0:02:00]} 13... Nxd5 {[%clk 0:02:13.2]} 14.
Qe1 {[%clk 0:01:59.7]} 14... Nb6 {[%clk 0:01:54.7]} 15. Ng3 {[%clk 0:01:54.1]}
15... Bg6 {[%clk 0:01:53.2]} 16. a4 {[%clk 0:01:52.3]} 16... Nc4 {[%clk
0:01:44.5]} 17. Bc3 {[%clk 0:01:48.2]} 17... f6 {[%clk 0:01:35.2]} 18. Qe2
{[%clk 0:01:42.8]} 18... Nd6 {[%clk 0:01:30.4]} 19. Rfd1 {[%clk 0:01:15.6]}
19... Be7 {[%clk 0:01:29.9]} 20. Bd2 {[%clk 0:00:53.8]} 20... Kb8 {[%clk
0:01:12.8]} 21. Be6 {[%clk 0:00:46]} 21... Qc6 {[%clk 0:01:07]} 22. b4 {[%clk
0:00:39.1]} 22... Ne4 {[%clk 0:01:07.2]} 23. Nxe4 {[%clk 0:00:23.2]} 23... Qxe4
{[%clk 0:01:07.3]} 24. Be3 {[%clk 0:00:22.7]} 24... Qxc2 {[%clk 0:01:00.9]} 25.
Rxd8+ {[%clk 0:00:19.2]} 25... Rxd8 {[%clk 0:01:00.6]} 26. Qb5 {[%clk
0:00:18.4]} 26... Bd3 {[%clk 0:00:44.8]} 27. Bxa7+ {[%clk 0:00:04.1]} 27... Kxa7
{[%clk 0:00:41]} 28. Qa5+ {[%clk 0:00:04.5]} 28... Kb8 {[%clk 0:00:41.5]} 29. b5
{[%clk 0:00:03.9]} 29... Bc5 {[%clk 0:00:37.4]} 30. Qe1 {[%clk 0:00:03.3]} 30...
Qe2 {[%clk 0:00:21.5]} 31. Qxe2 {[%clk 0:00:01.9]} 31... Bxe2 {[%clk 0:00:21.7]}
32. Kh2 {[%clk 0:00:02.1]} 32... Bxf2 {[%clk 0:00:21]} 33. Ra2 {[%clk
0:00:02.7]} 33... Rd6 {[%clk 0:00:13.5]} 34. Bf5 {[%clk 0:00:03.1]} 34... Bd3
{[%clk 0:00:13]} 35. Bxd3 {[%clk 0:00:02.8]} 35... Rxd3 {[%clk 0:00:13.6]} 36.
Rxf2 {[%clk 0:00:03.7]} 36... Ra3 {[%clk 0:00:13.4]} 37. Rd2 {[%clk 0:00:04.5]}
37... Kc8 {[%clk 0:00:13.5]} 38. b6 {[%clk 0:00:03.7]} 38... Rxa4 {[%clk
0:00:12.2]} 39. bxc7 {[%clk 0:00:04.1]} 39... Kxc7 {[%clk 0:00:12.7]} 40. Rc2+
{[%clk 0:00:04.8]} 40... Kd7 {[%clk 0:00:12.6]} 41. Rd2+ {[%clk 0:00:05.6]}
41... Rd4 {[%clk 0:00:12.8]} 42. Rb2 {[%clk 0:00:06.4]} 42... Kc6 {[%clk
0:00:11]} 43. Rc2+ {[%clk 0:00:06.8]} 43... Kd7 {[%clk 0:00:06.9]} 44. Rb2
{[%clk 0:00:07]} 44... Kc8 {[%clk 0:00:07.4]} 45. Rc2+ {[%clk 0:00:07.5]} 45...
Kb8 {[%clk 0:00:08]} 46. Rb2 {[%clk 0:00:08.1]} 46... h5 {[%clk 0:00:07.2]} 47.
Kg3 {[%clk 0:00:08.6]} 47... h4+ {[%clk 0:00:07.5]} 48. Kf3 {[%clk 0:00:09.3]}
48... f5 {[%clk 0:00:07]} 49. Rb5 {[%clk 0:00:08.9]} 49... Re4 {[%clk
0:00:07.3]} 50. Rb6 {[%clk 0:00:08.2]} 50... Rf4+ {[%clk 0:00:06.3]} 51. Ke3
{[%clk 0:00:08.4]} 51... Rc4 {[%clk 0:00:06.1]} 52. Rg6 {[%clk 0:00:08.9]} 52...
Rc3+ {[%clk 0:00:06.6]} 53. Kf2 {[%clk 0:00:09]} 53... Rg3 {[%clk 0:00:07.3]}
54. Re6 {[%clk 0:00:09.4]} 54... e4 {[%clk 0:00:07.8]} 55. Re8+ {[%clk
0:00:09.2]} 55... Ka7 {[%clk 0:00:08.2]} 56. Rh8 {[%clk 0:00:09.7]} 56... g5
{[%clk 0:00:07.9]} 57. Re8 {[%clk 0:00:10.1]} 57... e3+ {[%clk 0:00:07.6]} 58.
Kf1 {[%clk 0:00:10.1]} 58... f4 {[%clk 0:00:07.7]} 59. Re4 {[%clk 0:00:10.5]}
59... b5 {[%clk 0:00:07.7]} 60. Re6 {[%clk 0:00:10.7]} 60... Kb7 {[%clk
0:00:08.2]} 61. Kg1 {[%clk 0:00:10.2]} 61... Kc7 {[%clk 0:00:07.9]} 62. Kf1
{[%clk 0:00:10.8]} 62... f3 {[%clk 0:00:06.2]} 63. gxf3 {[%clk 0:00:10.6]} 63...
Rxf3+ {[%clk 0:00:06.7]} 64. Kg2 {[%clk 0:00:10.6]} 64... Rg3+ {[%clk
0:00:07.2]} 65. Kh2 {[%clk 0:00:11.3]} 65... Kd7 {[%clk 0:00:06.5]} 66. Re5
{[%clk 0:00:10.3]} 66... Kc6 {[%clk 0:00:05.6]} 67. Rf5 {[%clk 0:00:09.4]} 67...
b4 {[%clk 0:00:05.8]} 68. Rf1 {[%clk 0:00:09.3]} 68... b3 {[%clk 0:00:05.8]} 69.
Re1 {[%clk 0:00:08.3]} 69... b2 {[%clk 0:00:05.5]} 70. Ra1 {[%clk 0:00:09.2]}
70... Rxh3+ {[%clk 0:00:04.5]} 71. Kxh3 {[%clk 0:00:09.2]} 71... bxa1=Q {[%clk
0:00:04.8]} 72. Kg4 {[%clk 0:00:09.5]} 72... Qg1+ {[%clk 0:00:04.8]} 73. Kh3
{[%clk 0:00:10.2]} 73... Qf1+ {[%clk 0:00:04.4]} 74. Kg4 {[%clk 0:00:10.6]}
74... Qf4+ {[%clk 0:00:04.7]} 75. Kh5 {[%clk 0:00:11.2]} 75... h3 {[%clk
0:00:04.9]} 76. Kg6 {[%clk 0:00:11.9]} 76... h2 {[%clk 0:00:05.5]} 77. Kg7
{[%clk 0:00:12.8]} 77... h1=Q {[%clk 0:00:05.8]} 78. Kg6 {[%clk 0:00:13.7]}
78... Qhe4+ {[%clk 0:00:05.4]} 79. Kg7 {[%clk 0:00:14.6]} 79... Qee5+ {[%clk
0:00:05.7]} 0-1

[Event "Early-Titled-Tuesday-Blitz-April-23-2024"]
[Site "Chess.com"]
[Date "2024.04.23"]
[Round "2"]
[White "LiamPutnam2008"]
[Black "SHIVACalypso"]
[Result "1-0"]
[WhiteElo "2835"]
[BlackElo "2433"]
[TimeControl "180+1"]
[EndTime "8:19:25 PDT"]
[Termination "LiamPutnam2008 won on time"]

1. e4 {[%clk 0:03:00.9]} 1... e6 {[%clk 0:03:00.5]} 2. d4 {[%clk 0:02:59.7]}
2... d5 {[%clk 0:03:01]} 3. Nd2 {[%clk 0:02:59.1]} 3... e5 {[%clk 0:02:56.8]} 4.
dxe5 {[%clk 0:02:52.1]} 4... dxe4 {[%clk 0:02:56.3]} 5. Nxe4 {[%clk 0:02:48.5]}
5... Qxd1+ {[%clk 0:02:57.2]} 6. Kxd1 {[%clk 0:02:49.3]} 6... Nc6 {[%clk
0:02:57.4]} 7. Bf4 {[%clk 0:02:32.3]} 7... Bg4+ {[%clk 0:02:57.9]} 8. f3 {[%clk
0:02:31.9]} 8... O-O-O+ {[%clk 0:02:54.5]} 9. Kc1 {[%clk 0:02:21.6]} 9... Be6
{[%clk 0:02:49.3]} 10. c3 {[%clk 0:02:13.4]} 10... Nge7 {[%clk 0:02:45.7]} 11.
Kc2 {[%clk 0:02:09]} 11... Ng6 {[%clk 0:02:44.1]} 12. Bg3 {[%clk 0:02:09.3]}
12... Ngxe5 {[%clk 0:02:40.6]} 13. Ne2 {[%clk 0:02:06.9]} 13... Be7 {[%clk
0:02:35.2]} 14. Nf4 {[%clk 0:01:58.2]} 14... Bf5 {[%clk 0:02:33.1]} 15. Re1
{[%clk 0:01:58.7]} 15... h5 {[%clk 0:02:30.4]} 16. Nd3 {[%clk 0:01:54.2]} 16...
Nxd3 {[%clk 0:02:18.2]} 17. Bxd3 {[%clk 0:01:55.1]} 17... h4 {[%clk 0:02:17]}
18. Nd6+ {[%clk 0:01:53.1]} 18... Bxd6 {[%clk 0:02:17]} 19. Bxf5+ {[%clk
0:01:54]} 19... Kb8 {[%clk 0:02:17]} 20. Bf2 {[%clk 0:01:52.9]} 20... g6 {[%clk
0:02:06.5]} 21. Be4 {[%clk 0:01:45.8]} 21... Ne5 {[%clk 0:02:07]} 22. Re2 {[%clk
0:01:36.1]} 22... f5 {[%clk 0:02:04.5]} 23. Bd5 {[%clk 0:01:32.6]} 23... c6
{[%clk 0:02:02.2]} 24. Bd4 {[%clk 0:01:30.7]} 24... Rhe8 {[%clk 0:01:50.9]} 25.
Bb3 {[%clk 0:01:28.9]} 25... h3 {[%clk 0:01:44.8]} 26. Bxe5 {[%clk 0:01:04.9]}
26... Rxe5 {[%clk 0:01:39.8]} 27. Rd2 {[%clk 0:00:55.2]} 27... Bc7 {[%clk
0:01:39.6]} 28. Rxd8+ {[%clk 0:00:53.7]} 28... Bxd8 {[%clk 0:01:40.5]} 29. gxh3
{[%clk 0:00:52.6]} 29... Re2+ {[%clk 0:01:35.5]} 30. Kb1 {[%clk 0:00:51.6]}
30... Rf2 {[%clk 0:01:29.3]} 31. Rg1 {[%clk 0:00:50]} 31... g5 {[%clk
0:01:24.1]} 32. Bd1 {[%clk 0:00:35.9]} 32... Rxh2 {[%clk 0:01:22.9]} 33. Bc2
{[%clk 0:00:29.7]} 33... Rxh3 {[%clk 0:01:18.5]} 34. Rf1 {[%clk 0:00:25.6]}
34... f4 {[%clk 0:01:04.8]} 35. Bf5 {[%clk 0:00:24.3]} 35... Rg3 {[%clk
0:00:52.6]} 36. Bg4 {[%clk 0:00:17.5]} 36... Bb6 {[%clk 0:00:49]} 37. Kc2 {[%clk
0:00:18.1]} 37... Rg2+ {[%clk 0:00:46.8]} 38. Kb3 {[%clk 0:00:18.2]} 38... Kc7
{[%clk 0:00:47.1]} 39. Rd1 {[%clk 0:00:17.1]} 39... Be3 {[%clk 0:00:45.6]} 40.
Rd7+ {[%clk 0:00:16.6]} 40... Kb6 {[%clk 0:00:45.6]} 41. Bf5 {[%clk 0:00:09.4]}
41... Bc1 {[%clk 0:00:34.3]} 42. Bc2 {[%clk 0:00:09.2]} 42... Rf2 {[%clk
0:00:34.5]} 43. Rd1 {[%clk 0:00:07.4]} 43... Be3 {[%clk 0:00:30.6]} 44. Be4
{[%clk 0:00:08.1]} 44... Kc7 {[%clk 0:00:27.6]} 45. Ka3 {[%clk 0:00:06.1]} 45...
Bc5+ {[%clk 0:00:25.9]} 46. b4 {[%clk 0:00:05.8]} 46... Be3 {[%clk 0:00:22.9]}
47. Kb3 {[%clk 0:00:06.3]} 47... Rg2 {[%clk 0:00:19.5]} 48. Bf5 {[%clk
0:00:05.2]} 48... Rg3 {[%clk 0:00:18.4]} 49. Bg4 {[%clk 0:00:02.5]} 49... Rg2
{[%clk 0:00:17.5]} 50. a4 {[%clk 0:00:02.5]} 50... Rf2 {[%clk 0:00:16.9]} 51.
Rd7+ {[%clk 0:00:03.1]} 51... Kb6 {[%clk 0:00:14.3]} 52. a5+ {[%clk 0:00:03.5]}
52... Ka6 {[%clk 0:00:14.5]} 53. Bf5 {[%clk 0:00:03.4]} 53... Rd2 {[%clk
0:00:12.7]} 54. Bd3+ {[%clk 0:00:02.1]} 54... b5 {[%clk 0:00:13.1]} 55. Ka3
{[%clk 0:00:01.6]} 55... c5 {[%clk 0:00:10.2]} 56. Rd6+ {[%clk 0:00:02.3]} 56...
Kb7 {[%clk 0:00:09.9]} 57. Be4+ {[%clk 0:00:03]} 57... Kc7 {[%clk 0:00:09.8]}
58. Rc6+ {[%clk 0:00:03.8]} 58... Kd7 {[%clk 0:00:10.2]} 59. bxc5 {[%clk
0:00:04.7]} 59... Rg2 {[%clk 0:00:03.7]} 60. Kb3 {[%clk 0:00:05]} 60... g4
{[%clk 0:00:04.1]} 61. fxg4 {[%clk 0:00:05.1]} 61... Rxg4 {[%clk 0:00:05]} 62.
Rd6+ {[%clk 0:00:05.7]} 62... Ke7 {[%clk 0:00:05.1]} 63. Ra6 {[%clk 0:00:06.5]}
63... Bxc5 {[%clk 0:00:03.9]} 64. Rc6 {[%clk 0:00:07.1]} 64... Be3 {[%clk
0:00:04]} 65. Rc7+ {[%clk 0:00:06.6]} 65... Kd6 {[%clk 0:00:03.6]} 66. Rc8
{[%clk 0:00:06.5]} 66... Rg1 {[%clk 0:00:03.5]} 67. Rd8+ {[%clk 0:00:07.1]}
67... Ke5 {[%clk 0:00:03.6]} 68. Bf3 {[%clk 0:00:07.8]} 68... Rf1 {[%clk
0:00:03.6]} 69. Rd5+ {[%clk 0:00:08.5]} 69... Ke6 {[%clk 0:00:03.7]} 70. Be4
{[%clk 0:00:09.3]} 70... f3 {[%clk 0:00:03.7]} 71. Rd3 {[%clk 0:00:07.6]} 71...
f2 {[%clk 0:00:01.8]} 72. Rxe3 {[%clk 0:00:08]} 72... Rb1+ {[%clk 0:00:01.7]}
73. Bxb1+ {[%clk 0:00:08.5]} 1-0